bitfinex-derivatives/quotes_BTCF0:USTF0_20250602
["timestamp","ask_amount","ask_price","bid_price","bid_amount"]
[1748894276385,0.70952906,104490.0,104480.0,0.54312509]
[1748894276588,0.75952906,104490.0,104480.0,0.11843056]
[1748894277007,0.75952906,104490.0,104480.0,0.11847106]
[1748894277185,0.70952906,104490.0,104480.0,0.11847106]
[1748894277588,0.70952906,104490.0,104480.0,0.04551951]
[1748894277893,0.96952906,104490.0,104480.0,0.04551951]
[1748894278093,0.76300815,104490.0,104480.0,0.04551951]
[1748894279391,0.77277643,104490.0,104480.0,0.04551951]
[1748894280199,0.76307728,104490.0,104480.0,0.04551951]
[1748894280383,0.76307728,104490.0,104480.0,0.07641951]
[1748894280786,0.76307728,104490.0,104480.0,0.0309]
[1748894280987,0.76307728,104490.0,104480.0,0.07638508]
[1748894281189,0.55648724,104490.0,104480.0,0.07638508]
[1748894281389,0.76307728,104490.0,104480.0,0.07638508]
[1748894282297,0.77279081,104490.0,104480.0,0.07638508]
[1748894282494,0.77279081,104490.0,104480.0,0.04548508]
[1748894282893,0.97938085,104490.0,104480.0,0.04548508]
[1748894283099,0.97938085,104490.0,104460.0,0.46879019]
[1748894283100,0.1913574,104470.0,104460.0,0.46879019]
[1748894283292,0.75874744,104470.0,104460.0,0.04479019]
[1748894283493,0.82224744,104470.0,104460.0,0.00014373]
[1748894283895,0.82224744,104470.0,104460.0,0.32014373]
[1748894284197,0.78144744,104470.0,104460.0,0.36094373]
[1748894284398,0.78144744,104470.0,104460.0,0.36694373]
[1748894284399,1.04144744,104470.0,104460.0,0.36694373]
[1748894284801,1.04144744,104470.0,104460.0,0.00614373]
[1748894285403,1.04144744,104470.0,104460.0,0.00514373]
[1748894285702,1.04144744,104470.0,104460.0,0.01214373]
[1748894286300,1.04144744,104470.0,104460.0,0.01114373]
[1748894287003,0.8348574,104470.0,104460.0,0.01114373]
[1748894287198,0.8348574,104470.0,104460.0,0.37194373]
[1748894287399,1.04144744,104470.0,104460.0,0.37194373]
[1748894288103,1.04144744,104470.0,104460.0,0.40374373]
[1748894289706,0.8348574,104470.0,104460.0,0.40374373]
[1748894289900,1.04144744,104470.0,104460.0,0.40374373]
[1748894290094,0.8348574,104470.0,104460.0,0.80170947]
[1748894290405,0.8024574,104470.0,104460.0,0.86690947]
[1748894290605,0.2226574,104470.0,104460.0,1.17690947]
[1748894291108,0.2626574,104470.0,104460.0,0.97031943]
[1748894291309,0.2226574,104470.0,104460.0,0.97031943]
[1748894292109,0.1915574,104470.0,104460.0,0.97031943]
[1748894292301,0.1915574,104470.0,104460.0,1.17690947]
[1748894292501,0.1915574,104470.0,104460.0,1.62038947]
[1748894293700,0.1915574,104470.0,104460.0,1.69334102]
[1748894295012,0.1915574,104470.0,104460.0,1.73832349]
[1748894296309,0.1915574,104470.0,104460.0,1.73832759]
[1748894297713,0.0002,104470.0,104460.0,1.73832759]
[1748894298012,0.0002,104470.0,104460.0,1.98944692]
[1748894298013,0.1915574,104470.0,104460.0,1.98944692]
[1748894298217,0.3348698,104480.0,104470.0,0.1913574]
[1748894298400,0.3348698,104480.0,104470.0,1.04508556]
[1748894298806,0.3350698,104480.0,104470.0,1.04508556]
[1748894300104,0.3350698,104480.0,104470.0,1.36507049]
[1748894301216,0.3350698,104480.0,104470.0,1.40961188]
[1748894303014,0.3350698,104480.0,104470.0,1.36507049]
[1748894303412,0.3350698,104480.0,104470.0,1.33666033]
[1748894303822,0.1915545,104480.0,104470.0,1.40961188]
[1748894304110,0.1915545,104480.0,104470.0,1.40967594]
[1748894304522,0.0002,104480.0,104470.0,1.43956574]
[1748894304818,0.1915391,104480.0,104470.0,1.39499633]
[1748894305219,0.1915391,104480.0,104470.0,1.42444503]
[1748894305220,0.0002,104480.0,104470.0,1.42444503]
[1748894305419,0.0002,104480.0,104470.0,1.4846679]
[1748894305615,0.1913391,104480.0,104470.0,1.4846679]
[1748894305816,0.1915391,104480.0,104470.0,1.55739985]
[1748894306220,0.1915391,104480.0,104470.0,1.42444035]
[1748894306626,0.1915391,104480.0,104470.0,1.5141082]
[1748894307011,0.1915391,104480.0,104470.0,1.42444035]
[1748894307922,0.1915391,104480.0,104470.0,1.37943281]
[1748894308121,0.1915391,104480.0,104470.0,1.42436558]
[1748894309821,0.1915391,104480.0,104470.0,1.45706558]
[1748894310529,0.1915391,104480.0,104470.0,1.4570523]
[1748894310923,0.1915391,104480.0,104470.0,1.38432035]
[1748894311925,0.1915391,104480.0,104470.0,1.33940086]
[1748894312225,0.1915391,104480.0,104470.0,1.38432982]
[1748894313328,0.1915391,104480.0,104470.0,1.45706177]
[1748894314826,0.19578864,104480.0,104470.0,1.45706177]
[1748894315528,0.19578864,104480.0,104470.0,1.54672962]
[1748894315728,0.19578864,104480.0,104470.0,1.98988962]
[1748894315930,0.19578864,104480.0,104470.0,1.98989592]
[1748894318125,0.19578864,104480.0,104470.0,1.90022807]
[1748894318728,0.19578864,104480.0,104470.0,1.98989592]
[1748894319822,0.19578864,104480.0,104470.0,1.98993472]
[1748894320828,0.19578864,104480.0,104470.0,1.96051664]
[1748894321731,0.19578864,104480.0,104470.0,1.90096322]
[1748894323733,0.19578864,104480.0,104470.0,1.90098691]
[1748894324431,0.00444954,104480.0,104470.0,1.90098691]
[1748894324624,0.19578864,104480.0,104470.0,1.90098691]
[1748894325530,0.19578864,104480.0,104470.0,2.26178691]
[1748894327523,0.19578864,104480.0,104470.0,2.26187078]
[1748894330632,0.0663,104490.0,104470.0,2.17220293]
[1748894330934,0.3174701,104500.0,104490.0,0.1913207]
[1748894331127,0.3174701,104500.0,104490.0,1.62053017]
[1748894331333,0.3174701,104500.0,104490.0,1.59101685]
[1748894331531,0.2696424,104500.0,104490.0,1.54642623]
[1748894331740,0.2698424,104500.0,104490.0,1.54642623]
[1748894332034,0.2698424,104500.0,104490.0,1.54742623]
[1748894332437,0.2696424,104500.0,104490.0,1.54742623]
[1748894332737,0.2698424,104500.0,104490.0,1.54742623]
[1748894332936,0.2698424,104500.0,104490.0,1.45895419]
[1748894333132,0.2698424,104500.0,104490.0,1.54741942]
[1748894333329,0.2220024,104500.0,104490.0,1.54741942]
[1748894333938,0.2220024,104500.0,104490.0,1.88741942]
[1748894334831,0.2220024,104500.0,104490.0,1.96588332]
[1748894335032,0.0307,104500.0,104490.0,1.96588332]
[1748894335228,0.1596459,104510.0,104500.0,0.1913024]
[1748894335229,0.2552902,104510.0,104500.0,0.1913024]
[1748894335431,0.2871902,104510.0,104500.0,1.04418416]
[1748894335636,0.2873902,104510.0,104500.0,1.07698416]
[1748894336140,0.2873902,104510.0,104500.0,1.45698416]
[1748894336729,0.2873902,104510.0,104500.0,1.45798416]
[1748894337240,0.2873902,104510.0,104500.0,1.46598416]
[1748894337538,0.2873902,104510.0,104500.0,1.26739412]
[1748894337741,0.2873902,104510.0,104500.0,1.20785888]
[1748894338836,0.2873902,104510.0,104500.0,1.72233888]
[1748894339236,0.2873902,104510.0,104500.0,1.64946218]
[1748894339436,0.2873902,104510.0,104500.0,1.64901734]
[1748894339843,0.2873902,104510.0,104500.0,1.6585682]
[1748894340343,0.2873902,104510.0,104500.0,1.7314449]
[1748894341035,0.49398024,104510.0,104500.0,0.84793494]
[1748894341240,0.49398024,104510.0,104500.0,0.51540717]
[1748894341639,0.52398024,104510.0,104500.0,0.13540717]
[1748894341838,0.52398024,104510.0,104500.0,0.06253047]
[1748894342145,0.61966824,104510.0,104500.0,0.017]
[1748894342442,0.61966824,104510.0,104500.0,0.008]
[1748894342643,0.52398024,104510.0,104500.0,0.015]
[1748894343246,0.52398024,104510.0,104500.0,0.011]
[1748894343548,0.72398024,104510.0,104500.0,0.011]
[1748894343945,0.72398024,104510.0,104480.0,0.53796014]
[1748894343946,0.1913207,104490.0,104480.0,0.53796014]
[1748894344149,0.60450078,104490.0,104480.0,0.52397308]
[1748894344448,0.70060078,104490.0,104480.0,0.67936861]
[1748894344746,0.70060078,104490.0,104480.0,0.60649191]
[1748894345949,1.07060078,104490.0,104480.0,0.40649191]
[1748894346345,1.07060078,104490.0,104480.0,0.41349191]
[1748894347139,1.38060078,104490.0,104480.0,0.41349191]
[1748894347540,0.191339,104480.0,104470.0,0.40751034]
[1748894347742,0.46162904,104480.0,104470.0,0.40806804]
[1748894348854,0.46162904,104480.0,104470.0,0.61876804]
[1748894349147,0.46162904,104480.0,104470.0,0.62476804]
[1748894349655,0.46162904,104480.0,104470.0,0.62276804]
[1748894350049,0.46162904,104480.0,104470.0,0.62476804]
[1748894350349,0.83162904,104480.0,104470.0,0.44476804]
[1748894351051,0.591939,104480.0,104470.0,1.03338578]
[1748894351248,0.592139,104480.0,104470.0,1.14446238]
[1748894351454,0.222139,104480.0,104470.0,1.48446238]
[1748894351754,0.222139,104480.0,104470.0,1.43988578]
[1748894354451,0.222139,104480.0,104470.0,0.99708578]
[1748894354652,0.222139,104480.0,104470.0,1.54428578]
[1748894354850,0.255239,104480.0,104470.0,1.54428578]
[1748894355557,0.255239,104480.0,104470.0,0.99708578]
[1748894355851,0.46182904,104480.0,104470.0,0.37842838]
[1748894356245,0.54182904,104480.0,104470.0,0.37842838]
[1748894356745,0.54182904,104480.0,104470.0,0.00772838]
[1748894357154,0.54682904,104480.0,104470.0,0.00572838]
[1748894357448,0.90762904,104480.0,104470.0,8e-08]
[1748894357655,1.55054504,104480.0,104470.0,8e-08]
[1748894357849,1.82054504,104480.0,104470.0,8e-08]
[1748894358049,2.16886219,104480.0,104470.0,8e-08]
[1748894358355,0.1913573,104470.0,104460.0,0.42424373]
[1748894358549,0.49254734,104470.0,104460.0,0.42424373]
[1748894358854,0.66254734,104470.0,104460.0,0.42424373]
[1748894359654,0.66254734,104470.0,104460.0,0.42724373]
[1748894360351,0.4234573,104470.0,104460.0,0.61861933]
[1748894360659,0.4234573,104470.0,104460.0,0.96301933]
[1748894360955,0.4236573,104470.0,104460.0,0.96301933]
[1748894361356,0.4236573,104470.0,104460.0,0.77164373]
[1748894361552,0.63024734,104470.0,104460.0,0.77164373]
[1748894361749,0.66114734,104470.0,104460.0,0.77164373]
[1748894362156,0.66114734,104470.0,104460.0,1.21444373]
[1748894363054,0.66114734,104470.0,104460.0,0.77164373]
[1748894363259,0.66114734,104470.0,104460.0,0.73924373]
[1748894364254,1.11767134,104470.0,104460.0,0.00514373]
[1748894364659,0.1913756,104460.0,104450.0,0.3911]
[1748894364957,0.46146564,104460.0,104450.0,0.3911]
[1748894365565,0.63146564,104460.0,104450.0,0.1303]
[1748894365753,1.19885568,104460.0,104450.0,0.1]
[1748894366151,1.20860677,104460.0,104450.0,0.102]
[1748894366552,0.63166564,104460.0,104450.0,0.4628]
[1748894366859,0.63166564,104460.0,104450.0,0.493]
[1748894367244,0.63766564,104460.0,104450.0,0.391]
[1748894367654,0.63746564,104460.0,104450.0,0.392]
[1748894367946,0.63746564,104460.0,104450.0,0.4241]
[1748894368156,0.63766564,104460.0,104450.0,0.4241]
[1748894368759,0.63766564,104460.0,104450.0,0.4261]
[1748894368760,0.63166564,104460.0,104450.0,0.4261]
[1748894369561,0.64166564,104460.0,104450.0,0.4261]
[1748894370260,0.3715756,104460.0,104450.0,0.617494]
[1748894370465,0.3615756,104460.0,104450.0,0.97345834]
[1748894370765,0.3615756,104460.0,104450.0,1.68116404]
[1748894370766,0.1913756,104460.0,104450.0,1.68116404]
[1748894371262,0.1915756,104460.0,104450.0,1.68116404]
[1748894371461,0.1913756,104460.0,104450.0,1.68116404]
[1748894371760,0.1915756,104460.0,104450.0,1.68116404]
[1748894371967,0.1915756,104460.0,104450.0,3.18116404]
[1748894372160,0.1915756,104460.0,104450.0,1.68116404]
[1748894372560,0.1913756,104460.0,104450.0,1.68116404]
[1748894372765,0.33504073,104470.0,104460.0,0.1913756]
[1748894373065,0.33504073,104470.0,104460.0,1.21416564]
[1748894373466,0.33524073,104470.0,104460.0,1.0075756]
[1748894373966,0.34124073,104470.0,104460.0,1.0075756]
[1748894374163,0.34824073,104470.0,104460.0,1.0085756]
[1748894374958,0.34124073,104470.0,104460.0,1.0085756]
[1748894375158,0.34124073,104470.0,104460.0,1.5556156]
[1748894375355,0.33524073,104470.0,104460.0,1.5556156]
[1748894375665,0.33524073,104470.0,104460.0,1.97079568]
[1748894375666,0.00034373,104470.0,104460.0,1.97079568]
[1748894375863,0.19170103,104470.0,104460.0,1.76420564]
[1748894376062,0.19150103,104470.0,104460.0,1.76420564]
[1748894376258,0.19170103,104470.0,104460.0,1.76420564]
[1748894379872,0.19170103,104470.0,104460.0,1.76412564]
[1748894380776,0.19170103,104470.0,104460.0,1.8368815]
[1748894384678,0.19170103,104470.0,104460.0,1.2899215]
[1748894384878,0.19170103,104470.0,104460.0,1.8368415]
[1748894385078,0.19170103,104470.0,104460.0,1.2899215]
[1748894385276,0.19170103,104470.0,104460.0,1.8368415]
[1748894385980,0.19170103,104470.0,104460.0,1.92651155]
[1748894387779,0.19170103,104470.0,104460.0,1.92649246]
[1748894388291,0.19170103,104470.0,104460.0,1.92645246]
[1748894390090,0.00034373,104470.0,104460.0,1.92645246]
[1748894390292,0.19170103,104470.0,104460.0,1.98587817]
[1748894390891,0.19170103,104470.0,104460.0,1.15965227]
[1748894391095,0.19170103,104470.0,104460.0,1.36624231]
[1748894391294,0.19170103,104470.0,104460.0,1.8535766]
[1748894391595,0.19170103,104470.0,104460.0,1.85353475]
[1748894392797,0.19170103,104470.0,104460.0,1.91296046]
[1748894393191,0.19170103,104470.0,104460.0,1.98571632]
[1748894393398,0.19170103,104470.0,104460.0,1.94117739]
[1748894393798,0.19170103,104470.0,104460.0,1.73454735]
[1748894394097,0.19170103,104470.0,104460.0,1.94113739]
[1748894395298,0.19170103,104470.0,104460.0,1.89606721]
[1748894395601,0.19170103,104470.0,104460.0,1.39442064]
[1748894395900,0.19170103,104470.0,104460.0,1.1878306]
[1748894396197,0.19170103,104470.0,104460.0,0.996455]
[1748894396388,0.49499107,104470.0,104460.0,1.28860023]
[1748894396587,0.49499107,104470.0,104460.0,0.84604023]
[1748894396796,0.49499107,104470.0,104460.0,1.28860023]
[1748894397000,0.49499107,104470.0,104460.0,1.47997593]
[1748894397196,0.28840103,104470.0,104460.0,1.28860023]
[1748894397502,0.28840103,104470.0,104460.0,1.47997593]
[1748894397699,0.28840103,104470.0,104460.0,1.54137593]
[1748894399086,0.28820103,104470.0,104460.0,1.76235797]
[1748894399297,0.19170103,104470.0,104460.0,1.76288942]
[1748894399594,0.19150103,104470.0,104460.0,1.32032942]
[1748894399792,0.19150103,104470.0,104460.0,1.11373938]
[1748894399793,0.19170103,104470.0,104460.0,1.11373938]
[1748894399999,0.25410103,104470.0,104460.0,1.11373938]
[1748894400194,0.09514373,104470.0,104460.0,1.48222385]
[1748894400401,0.3348627,104480.0,104470.0,0.3348485]
[1748894400599,0.4296627,104480.0,104470.0,1.4995673]
[1748894400999,0.4296627,104480.0,104470.0,1.33811523]
[1748894401403,0.4296627,104480.0,104470.0,1.34760882]
[1748894401604,0.4358627,104480.0,104470.0,1.55419886]
[1748894401899,0.4358627,104480.0,104470.0,1.33811523]
[1748894402104,0.4358627,104480.0,104470.0,1.86470527]
[1748894402705,0.4426627,104480.0,104470.0,1.65911523]
[1748894403005,0.4428627,104480.0,104470.0,1.81786817]
[1748894403306,0.4428627,104480.0,104470.0,1.8179402]
[1748894403505,0.4428627,104480.0,104470.0,1.86261824]
[1748894403804,0.4428627,104480.0,104470.0,1.8179402]
[1748894404701,0.4428627,104480.0,104470.0,1.73848993]
[1748894405005,0.4428627,104480.0,104470.0,1.89069606]
[1748894405305,0.3002255,104480.0,104470.0,1.93537533]
[1748894405500,0.2523884,104480.0,104470.0,1.95047686]
[1748894405706,0.2521884,104480.0,104470.0,1.8909081]
[1748894405899,0.2523884,104480.0,104470.0,2.2517081]
[1748894406101,0.2521884,104480.0,104470.0,2.2517081]
[1748894406310,0.2523884,104480.0,104470.0,2.2517081]
[1748894406810,0.2045391,104480.0,104470.0,2.2517081]
[1748894407104,0.2043391,104480.0,104470.0,2.25266362]
[1748894407301,0.2045391,104480.0,104470.0,2.25266362]
[1748894407700,0.1912894,104510.0,104470.0,2.51795826]
[1748894407899,0.2391151,104510.0,104500.0,1.01962585]
[1748894408097,0.2391151,104510.0,104500.0,1.50281234]
[1748894408305,0.2393151,104510.0,104500.0,3.00201588]
[1748894408495,0.2393151,104510.0,104500.0,2.95421128]
[1748894408695,0.3031151,104510.0,104500.0,2.89469857]
[1748894408901,0.3033151,104510.0,104500.0,2.89469857]
[1748894409300,0.3033151,104510.0,104500.0,2.82285299]
[1748894409301,0.3123151,104510.0,104500.0,2.82285299]
[1748894409510,0.3163151,104510.0,104500.0,2.82285299]
[1748894409806,0.3163151,104510.0,104500.0,3.03903618]
[1748894410107,0.3203151,104510.0,104500.0,3.03044303]
[1748894410697,0.2563151,104510.0,104500.0,2.77926622]
[1748894410897,0.0172,104510.0,104500.0,3.04026441]
[1748894411103,0.2082841,104510.0,104500.0,2.99567764]
[1748894411302,0.2084841,104510.0,104500.0,2.99404578]
[1748894411707,0.2084841,104510.0,104500.0,3.03728593]
[1748894412010,0.2084841,104510.0,104500.0,3.45182457]
[1748894412209,0.2084841,104510.0,104500.0,3.52445724]
[1748894412517,0.2084841,104510.0,104500.0,3.27462705]
[1748894412703,0.2411841,104510.0,104500.0,3.27462705]
[1748894412899,0.2732841,104510.0,104500.0,3.27462705]
[1748894413099,0.2732841,104510.0,104500.0,3.40858442]
[1748894413305,0.2732841,104510.0,104500.0,3.20199438]
[1748894413505,0.2732841,104510.0,104500.0,3.40858442]
[1748894413797,0.2732841,104510.0,104500.0,3.20199438]
[1748894413997,0.2732841,104510.0,104500.0,3.40858442]
[1748894414299,0.2732841,104510.0,104500.0,2.62338064]
[1748894414612,0.2732841,104510.0,104500.0,1.077593]
[1748894414812,0.2732841,104510.0,104500.0,1.547033]
[1748894415204,0.2732841,104510.0,104500.0,1.75362304]
[1748894416207,0.2732841,104510.0,104500.0,1.547033]
[1748894416410,0.2732841,104510.0,104500.0,1.75362304]
[1748894416609,0.2732841,104510.0,104500.0,1.75338304]
[1748894416807,0.2732841,104510.0,104500.0,1.78147707]
[1748894417115,0.2732841,104510.0,104500.0,1.12097467]
[1748894417314,0.2732841,104510.0,104500.0,1.50201436]
[1748894417616,0.2732841,104510.0,104500.0,1.2396444]
[1748894417815,0.2732841,104510.0,104500.0,1.7086444]
[1748894419617,0.27753364,104510.0,104500.0,1.7086444]
[1748894420012,0.27753364,104510.0,104500.0,1.31059196]
[1748894420013,0.30833364,104510.0,104500.0,1.31059196]
[1748894420217,0.51492368,104510.0,104500.0,1.23444]
[1748894420824,0.24273364,104510.0,104500.0,1.26241244]
[1748894421115,0.24273364,104510.0,104500.0,0.86452]
[1748894421116,0.33913364,104510.0,104500.0,0.86452]
[1748894421319,0.33913364,104510.0,104500.0,1.41241244]
[1748894421527,0.33913364,104510.0,104500.0,1.4675224]
[1748894421713,0.33893364,104510.0,104500.0,1.4675224]
[1748894422309,0.33913364,104510.0,104500.0,1.4675224]
[1748894422920,0.33913364,104510.0,104500.0,1.51200902]
[1748894423620,0.33913364,104510.0,104500.0,1.67411244]
[1748894423820,0.24273364,104510.0,104500.0,1.24968359]
[1748894424024,0.24273364,104510.0,104500.0,1.71864359]
[1748894424221,0.27283364,104510.0,104500.0,1.71864359]
[1748894424522,0.27303364,104510.0,104500.0,1.71864359]
[1748894425022,0.24303364,104510.0,104500.0,1.71864359]
[1748894425824,0.24303364,104510.0,104500.0,1.71840359]
[1748894426019,0.24303364,104510.0,104500.0,1.51181355]
[1748894426224,0.24303364,104510.0,104500.0,1.71840359]
[1748894426418,0.30693364,104510.0,104500.0,1.71840359]
[1748894427021,0.27393364,104510.0,104500.0,1.71840359]
[1748894427824,0.21273364,104510.0,104500.0,1.71842812]
[1748894429119,0.21273364,104510.0,104500.0,1.83557338]
[1748894429523,0.21253364,104510.0,104500.0,1.83557338]
[1748894429724,0.21273364,104510.0,104500.0,1.83557338]
[1748894431826,0.02144954,104510.0,104500.0,1.92340986]
[1748894432026,0.02144954,104510.0,104500.0,1.93840998]
[1748894432221,0.02124954,104510.0,104500.0,1.86577731]
[1748894432422,0.21273364,104510.0,104500.0,1.86577731]
[1748894433332,0.21273364,104510.0,104500.0,1.83571657]
[1748894433833,0.21273364,104510.0,104500.0,1.87899071]
[1748894434028,0.21273364,104510.0,104500.0,1.83571657]
[1748894434229,0.21273364,104510.0,104500.0,1.8790054]
[1748894435028,0.21273364,104510.0,104500.0,1.92229665]
[1748894435230,0.21273364,104510.0,104500.0,1.80629298]
[1748894435635,0.21273364,104510.0,104500.0,1.86580569]
[1748894436538,0.21273364,104510.0,104500.0,1.39708569]
[1748894436735,0.21273364,104510.0,104500.0,1.86516569]
[1748894437335,0.21273364,104510.0,104500.0,1.98200569]
[1748894438131,0.21273364,104510.0,104500.0,1.21881729]
[1748894438343,0.24523364,104510.0,104500.0,1.84979998]
[1748894438634,0.24523364,104510.0,104500.0,1.92405317]
[1748894438635,0.21273364,104510.0,104500.0,1.92405317]
[1748894438835,0.21273364,104510.0,104500.0,1.98364588]
[1748894439230,0.21253364,104510.0,104500.0,1.98364588]
[1748894439736,0.21253364,104510.0,104500.0,1.93902737]
[1748894439737,0.21273364,104510.0,104500.0,1.93902737]
[1748894439935,0.21273364,104510.0,104500.0,1.98372998]
[1748894440540,0.21273364,104510.0,104500.0,2.0283347]
[1748894441639,0.02144954,104510.0,104500.0,2.0283347]
[1748894441947,0.21273374,104510.0,104500.0,1.98372998]
[1748894442538,0.21253374,104510.0,104500.0,2.07299905]
[1748894442734,0.21273374,104510.0,104500.0,2.07299905]
[1748894442945,0.21273374,104510.0,104500.0,2.07331905]
[1748894443347,0.21273374,104510.0,104500.0,2.07327905]
[1748894443739,0.21273374,104510.0,104500.0,2.02864558]
[1748894444247,0.21273374,104510.0,104500.0,1.86667316]
[1748894444442,0.21273374,104510.0,104500.0,2.0732632]
[1748894447655,0.21273374,104510.0,104500.0,2.07325679]
[1748894447952,0.21273374,104510.0,104500.0,1.48653679]
[1748894448152,0.21273374,104510.0,104500.0,2.07269679]
[1748894449146,0.21273374,104510.0,104500.0,1.48653679]
[1748894449341,0.21273374,104510.0,104500.0,2.07269679]
[1748894449748,0.24070771,104520.0,104510.0,0.1912841]
[1748894449946,0.24070771,104520.0,104510.0,1.0145278]
[1748894450242,0.24070771,104520.0,104510.0,1.05782523]
[1748894450549,0.24090771,104520.0,104510.0,1.07423739]
[1748894450851,0.24090771,104520.0,104510.0,1.13368139]
[1748894451345,0.24090771,104520.0,104510.0,1.04448718]
[1748894451540,0.00182251,104520.0,104510.0,1.04448718]
[1748894451743,0.19308831,104520.0,104510.0,1.04448529]
[1748894451947,0.19308831,104520.0,104510.0,0.99990946]
[1748894452148,0.19308831,104520.0,104510.0,1.04588626]
[1748894452348,0.19388831,104520.0,104510.0,1.0901786]
[1748894452753,0.19408831,104520.0,104510.0,1.4101786]
[1748894453056,0.19408831,104520.0,104510.0,1.32090953]
[1748894453559,0.19408831,104520.0,104510.0,1.4101786]
[1748894454460,0.00282251,104520.0,104510.0,1.4101786]
[1748894454654,0.2390761,104530.0,104520.0,0.1912658]
[1748894454850,0.2390761,104530.0,104520.0,1.53002378]
[1748894454851,0.2868892,104530.0,104520.0,1.53002378]
[1748894455252,0.2868892,104530.0,104520.0,1.85002378]
[1748894455456,0.2870892,104530.0,104520.0,1.85002378]
[1748894455857,0.2880892,104530.0,104520.0,1.85117153]
[1748894456664,0.2880892,104530.0,104520.0,1.64458149]
[1748894456963,0.2880892,104530.0,104520.0,1.85117153]
[1748894458663,0.1924633,104530.0,104520.0,1.85117153]
[1748894458864,0.1924633,104530.0,104520.0,1.90933692]
[1748894459755,0.1924633,104530.0,104520.0,1.9093247]
[1748894460159,0.0012,104530.0,104520.0,1.9093247]
[1748894460355,0.1924475,104530.0,104520.0,2.11591474]
[1748894460562,0.001,104530.0,104520.0,2.20518381]
[1748894461364,0.0012,104530.0,104520.0,1.79200373]
[1748894461570,0.0012,104530.0,104520.0,2.20518381]
[1748894462067,0.0012,104530.0,104520.0,2.14573981]
[1748894462865,0.3841343,104550.0,104540.0,0.1912292]
[1748894462866,0.4319404,104550.0,104540.0,0.1912292]
[1748894463167,0.3841343,104550.0,104540.0,1.70488122]
[1748894463364,0.3841343,104550.0,104540.0,1.84492]
[1748894463573,0.3843343,104550.0,104540.0,1.84492]
[1748894463757,0.3841343,104550.0,104540.0,1.84492]
[1748894463960,0.3843343,104550.0,104540.0,1.84492]
[1748894464160,0.4743343,104550.0,104540.0,1.84492]
[1748894464561,0.4743343,104550.0,104540.0,1.63832996]
[1748894464865,0.4743343,104550.0,104540.0,1.84492]
[1748894465067,0.4743343,104550.0,104540.0,1.84592]
[1748894465267,0.4743343,104550.0,104540.0,1.80138122]
[1748894465567,0.4743343,104550.0,104540.0,1.80238122]
[1748894465967,0.4743343,104550.0,104540.0,1.80138122]
[1748894466576,0.3843343,104550.0,104540.0,2.12138122]
[1748894467165,0.59092434,104550.0,104540.0,0.72653468]
[1748894467467,0.59092434,104550.0,104540.0,1.19433468]
[1748894467661,0.3843343,104550.0,104540.0,0.72653468]
[1748894467863,0.3843343,104550.0,104540.0,1.19473468]
[1748894467864,0.59092434,104550.0,104540.0,1.19473468]
[1748894468355,0.68092434,104550.0,104540.0,0.87473468]
[1748894468557,0.68092434,104550.0,104540.0,0.40653468]
[1748894468762,0.68092434,104550.0,104540.0,0.87453468]
[1748894469270,0.68092434,104550.0,104540.0,0.87473468]
[1748894469670,0.4743343,104550.0,104540.0,0.98473468]
[1748894469872,0.68092434,104550.0,104540.0,0.98473468]
[1748894470570,0.68092434,104550.0,104540.0,0.4718]
[1748894471172,0.68092434,104550.0,104540.0,0.94004]
[1748894472566,0.68092434,104550.0,104540.0,0.9854215]
[1748894472766,0.68092434,104550.0,104540.0,0.5171815]
[1748894472972,0.68092434,104550.0,104540.0,0.9852215]
[1748894473771,0.68092434,104550.0,104540.0,0.8752215]
[1748894475269,0.68092434,104550.0,104540.0,0.82972518]
[1748894475476,0.68092434,104550.0,104540.0,0.87511849]
[1748894475974,0.4743343,104550.0,104540.0,1.06634769]
[1748894476164,0.4741343,104550.0,104540.0,1.06634769]
[1748894476371,0.4743343,104550.0,104540.0,1.06634769]
[1748894476974,0.4743343,104550.0,104540.0,0.87511849]
[1748894477371,0.68092434,104550.0,104540.0,0.87511849]
[1748894478576,0.68092434,104550.0,104540.0,1.06634769]
[1748894478869,0.68092434,104550.0,104540.0,0.87511849]
[1748894479062,0.68092434,104550.0,104540.0,0.87514165]
[1748894479578,0.68517388,104550.0,104540.0,0.87514165]
[1748894479772,0.68517388,104550.0,104540.0,1.06637085]
[1748894479976,0.47858384,104550.0,104540.0,1.06637085]
[1748894480278,0.47858384,104550.0,104540.0,1.09697085]
[1748894481176,0.47858384,104550.0,104540.0,0.90574165]
[1748894482176,0.47858384,104550.0,104540.0,1.09697095]
[1748894482772,0.47858384,104550.0,104540.0,0.93654165]
[1748894483075,0.68517388,104550.0,104540.0,0.4377351]
[1748894483281,0.68517388,104550.0,104540.0,0.45290025]
[1748894483578,0.68517388,104550.0,104540.0,0.45190025]
[1748894484177,0.68517388,104550.0,104540.0,0.49735877]
[1748894485282,0.68517388,104550.0,104540.0,0.52745877]
[1748894485982,0.68517388,104550.0,104540.0,0.48200025]
[1748894486382,0.68517388,104550.0,104540.0,0.52746808]
[1748894486780,0.68517388,104550.0,104540.0,0.48200025]
[1748894487183,0.68517388,104550.0,104540.0,0.71869796]
[1748894487384,0.47858384,104550.0,104540.0,0.74899796]
[1748894488381,0.47858384,104550.0,104540.0,0.60324886]
[1748894488687,0.47858384,104550.0,104540.0,0.79447816]
[1748894488987,0.47858384,104550.0,104540.0,0.74900965]
[1748894489674,1.04597388,104550.0,104540.0,0.16679517]
[1748894489880,1.04597388,104550.0,104540.0,0.10609517]
[1748894490085,1.04597388,104550.0,104540.0,0.06061507]
[1748894490086,1.34821592,104550.0,104540.0,0.06061507]
[1748894490282,1.34821592,104550.0,104530.0,0.06344373]
[1748894490283,0.1912292,104540.0,104530.0,0.0607588]
[1748894490480,0.85161924,104540.0,104530.0,0.04565833]
[1748894490679,0.85161924,104540.0,104530.0,0.00014373]
[1748894491082,0.97084137,104540.0,104530.0,0.00014373]
[1748894491480,0.85161924,104540.0,104530.0,0.00014373]
[1748894491889,0.85161924,104540.0,104530.0,0.00614373]
[1748894492074,0.85161924,104540.0,104530.0,0.03904373]
[1748894492985,0.49081924,104540.0,104530.0,0.04404373]
[1748894493282,0.77101924,104540.0,104530.0,0.21125179]
[1748894493489,0.5644292,104540.0,104530.0,0.40249929]
[1748894493690,0.77081924,104540.0,104530.0,0.21125179]
[1748894493883,0.77101924,104540.0,104530.0,0.21125179]
[1748894494086,0.77101924,104540.0,104530.0,0.39125179]
[1748894494889,0.77101924,104540.0,104530.0,0.58249929]
[1748894495092,0.77101924,104540.0,104530.0,0.6279856]
[1748894495293,0.77101924,104540.0,104530.0,0.58249929]
[1748894495590,0.77101924,104540.0,104530.0,0.3457588]
[1748894495791,0.77526878,104540.0,104530.0,0.3457588]
[1748894495979,0.77526878,104540.0,104530.0,0.5370064]
[1748894496592,0.77526878,104540.0,104530.0,0.83719133]
[1748894497995,0.77526878,104540.0,104530.0,0.89783611]
[1748894498490,0.71276878,104540.0,104530.0,1.03783611]
[1748894501487,0.71276878,104540.0,104530.0,1.03783601]
[1748894501681,0.71276878,104540.0,104530.0,0.82783601]
[1748894502588,0.71276878,104540.0,104530.0,0.87333714]
[1748894503489,0.71276878,104540.0,104530.0,0.82783601]